fUSD/lending_fUSD_20260112
["ID","MTS","AMOUNT","RATE_DAILY","PERIOD"]
[401413786,1768193433846,500.0,0.00012587,2]
[401413787,1768193436730,500.0,0.00012587,2]
[401413788,1768193436793,500.0,0.00012587,2]
[401413789,1768193436869,500.0,0.00012587,2]
[401413790,1768193436938,500.0,0.00012587,2]
[401413791,1768193437014,500.0,0.00012587,2]
[401413792,1768193437073,500.0,0.00012587,2]
[401413793,1768193437147,284.73202427,0.00012587,2]
[401413794,1768193438024,-215.26797573,0.00012587,2]
[401413795,1768193438037,-134.21646464,0.00012587,2]
[401413796,1768193438056,-365.78353536,0.00012587,2]
[401413797,1768193438068,-500.0,0.00012587,2]
[401413798,1768193438082,-222.3347843,0.00012587,2]
[401413799,1768193438098,-500.0,0.00012587,2]
[401413800,1768193438111,-500.0,0.00012587,2]
[401413801,1768193438127,-500.0,0.00012587,2]
[401413802,1768193438141,-500.0,0.00012587,2]
[401413803,1768193438153,-8225.14615241,0.00012588,2]
[401413804,1768193438170,-648.50836407,0.00012588,2]
[401413805,1768193438203,-321.31094678,0.00012588,2]
[401413912,1768193439345,-4077.57874292,0.00012588,2]
[401413914,1768193439359,-36131.81878327,0.00012588,2]
[401413982,1768193443023,-597094.68888446,0.00012588,2]
[401413983,1768193443034,-1119.21541804,0.00012588,2]
[401413984,1768193443044,-2883.63510289,0.00012588,2]
[401413985,1768193443053,-281.83931929,0.00012588,2]
[401413986,1768193443062,-2995.17829643,0.00012588,2]
[401413987,1768193443073,-3220.750922,0.00012617,2]
[401413988,1768193443082,-300.0,0.00012647,2]
[401413989,1768193443093,-1200.0,0.00012647,2]
[401413990,1768193443104,-195.0,0.00012664,2]
[401413991,1768193443114,-150.0,0.00012687,2]
[401413992,1768193443124,-2841.9,0.00012688,2]
[401413993,1768193443134,-5445.96,0.00012688,2]
[401413994,1768193443143,-9999.99,0.00012688,2]
[401413995,1768193443152,-2649.93,0.00012688,2]
[401413996,1768193443161,-999.99,0.00012688,2]
[401413997,1768193443172,-150.99,0.00012688,2]
[401413998,1768193443181,-530.44606972,0.00012688,2]
[401413999,1768193443190,-202.52855456,0.00012688,2]
[401414000,1768193443199,-151.0,0.00012688,2]
[401414001,1768193443208,-151.0,0.00012688,2]
[401414002,1768193443217,-151.0,0.00012688,2]
[401414003,1768193443227,-151.0,0.00012688,2]
[401414004,1768193443237,-151.0,0.00012688,2]
[401414006,1768193443246,-151.0,0.00012688,2]
[401414007,1768193443255,-151.0,0.00012688,2]
[401414008,1768193443264,-151.0,0.00012688,2]
[401414009,1768193443274,-151.0,0.00012688,2]
[401414010,1768193443284,-151.0,0.00012688,2]
[401414011,1768193443294,-151.0,0.00012688,2]
[401414012,1768193443303,-151.0,0.00012688,2]
[401414013,1768193443312,-151.0,0.00012688,2]
[401414014,1768193443326,-1447.9,0.00012688,2]
[401414015,1768193443336,-5360.36142567,0.00012695,2]
[401414016,1768193443345,-500.0,0.00012695,2]
[401414017,1768193443355,-1158.71,0.00012717,2]
[401414018,1768193443364,-299.99,0.00012748,2]
[401414019,1768193443373,-150.99,0.00012748,2]
[401414020,1768193443383,-1000.0,0.00012748,2]
[401414021,1768193443392,-658.99,0.00012897,2]
[401414022,1768193443402,-319.66,0.00012954,2]
[401414023,1768193443413,-1447.9,0.00012962,2]
[401414024,1768193443425,-1744.47773446,0.00012967,2]
[401414025,1768193443435,-500.0,0.00012969,2]
[401414026,1768193443445,-13220.76092192,0.00013204,2]
[401414027,1768193443455,-1447.9,0.00013236,2]
[401414028,1768193443465,-305.71227501,0.00013243,2]
[401414029,1768193443475,-1801.08,0.00013342,2]
[401414030,1768193443484,-500.0,0.00013424,2]
[401414031,1768193443494,-154.087793,0.00013424,2]
[401414032,1768193443505,-150.0,0.00013424,2]
[401414033,1768193443515,-150.0,0.00013424,2]
[401414034,1768193443526,-150.0,0.00013424,2]
[401414035,1768193443537,-500.0,0.00013424,2]
[401414036,1768193443546,-150.0,0.00013424,2]
[401414037,1768193443556,-150.0,0.00013424,2]
[401414038,1768193443565,-150.0,0.00013424,2]
[401414039,1768193443576,-500.0,0.00013424,2]
[401414040,1768193443585,-819.0,0.00013424,2]
[401414041,1768193443594,-500.0,0.00013424,2]
[401414042,1768193443605,-150.0,0.00013424,2]
[401414043,1768193443615,-500.0,0.00013479,2]
[401414045,1768193443625,-150.0,0.00013479,2]
[401414047,1768193443634,-150.0,0.00013479,2]
[401414049,1768193443644,-150.0,0.00013479,2]
[401414050,1768193443654,-500.0,0.00013479,2]
[401414051,1768193443663,-150.96535916,0.00013479,2]
[401414052,1768193443672,-150.0,0.00013479,2]
[401414053,1768193443682,-150.0,0.00013479,2]
[401414054,1768193443693,-500.0,0.00013479,2]
[401414055,1768193443702,-819.0,0.00013479,2]
[401414056,1768193443712,-500.0,0.00013479,2]
[401414057,1768193443722,-150.0,0.00013479,2]
[401414058,1768193443732,-1447.9,0.0001351,2]
[401414059,1768193443742,-252.87382707,0.00013534,2]
[401414060,1768193443751,-150.0,0.00013534,2]
[401414061,1768193443760,-150.0,0.00013534,2]
[401414062,1768193443769,-150.0,0.00013534,2]
[401414063,1768193443778,-282.10315697,0.00013534,2]
[401414064,1768193443787,-204.15967263,0.00013534,2]
[401414065,1768193443796,-160.92556746,0.00013534,2]
[401414066,1768193443805,-500.0,0.00013534,2]
[401414067,1768193443814,-819.0,0.00013534,2]
[401414068,1768193443824,-500.0,0.00013534,2]
[401414069,1768193443832,-257.99250845,0.00013534,2]
[401414070,1768193443841,-202.62137386,0.00013588,2]
[401414071,1768193443850,-150.0,0.00013588,2]
[401414072,1768193443860,-296.09401039,0.00013588,2]
[401414073,1768193443869,-500.0,0.00013588,2]
[401414074,1768193443878,-819.0,0.00013588,2]
[401414075,1768193443887,-500.0,0.00013588,2]
[401414076,1768193443897,-150.0,0.00013643,2]
[401414077,1768193443907,-387.1370207,0.00013643,2]
[401414078,1768193443917,-819.0,0.00013643,2]
[401414079,1768193443927,-500.0,0.00013643,2]
[401414080,1768193443937,-319.66,0.00013674,2]
[401414081,1768193443946,-172.8,0.00013682,2]
[401414082,1768193443956,-178.73,0.00013698,2]
[401414083,1768193443965,-819.0,0.00013698,2]
[401414084,1768193443976,-500.0,0.00013698,2]
[401414085,1768193443987,-500.0,0.00013698,2]
[401414086,1768193443997,-500.0,0.00013698,2]
[401414087,1768193444007,-500.0,0.00013698,2]
[401414088,1768193444017,-500.0,0.00013698,2]
[401414089,1768193444029,-526.37134529,0.00013698,2]
[401414090,1768193444038,-500.0,0.00013698,2]
[401414091,1768193444049,-500.0,0.00013698,2]
[401414092,1768193444058,-500.0,0.00013698,2]
[401414093,1768193444069,-500.0,0.00013698,2]
[401414094,1768193444077,-500.0,0.00013698,2]
[401414095,1768193444089,-551.14146089,0.00013698,2]
[401414096,1768193444100,-500.0,0.00013698,2]
[401414097,1768193444109,-200.63190487,0.00013698,2]
[401414098,1768193444119,-500.0,0.00013698,2]
[401414099,1768193444129,-500.0,0.00013698,2]
[401414100,1768193444138,-500.0,0.00013698,2]
[401414101,1768193444147,-330.30276578,0.00013698,2]
[401414102,1768193444156,-500.0,0.00013698,2]
[401414103,1768193444168,-500.0,0.00013698,2]
[401414104,1768193444177,-500.0,0.00013698,2]
[401414105,1768193444186,-500.0,0.00013698,2]
[401414106,1768193444195,-500.0,0.00013698,2]
[401414107,1768193444204,-500.0,0.00013698,2]
[401414108,1768193444214,-540.03623195,0.00013698,2]
[401414109,1768193444223,-500.0,0.00013698,2]
[401414110,1768193444232,-602.58106697,0.00013698,2]
[401414111,1768193444241,-500.0,0.00013698,2]
[401414112,1768193444250,-518.76755169,0.00013698,2]
[401414113,1768193444260,-500.0,0.00013698,2]
[401414114,1768193444269,-404.51117323,0.00013698,2]
[401414115,1768193444278,-508.50378479,0.00013698,2]
[401414116,1768193444287,-500.0,0.00013698,2]
[401414117,1768193444296,-500.0,0.00013698,2]
[401414118,1768193444306,-500.0,0.00013698,2]
[401414119,1768193444315,-500.0,0.00013698,2]
[401414120,1768193444324,-200.0,0.00013699,2]
[401414121,1768193444334,-189.76,0.00013699,2]
[401414122,1768193444343,-709.68,0.00013699,2]
[401414123,1768193444352,-772.32,0.00013699,2]
[401414124,1768193444361,-819.0,0.00013753,2]
[401414125,1768193444371,-500.0,0.00013753,2]
[401414126,1768193444380,-1447.9,0.00013784,2]
[401414127,1768193444390,-255.0,0.0001379,2]
[401414128,1768193444401,-13220.76092192,0.00013791,2]
[401414129,1768193444412,-166.67,0.00013805,2]
[401414130,1768193444422,-819.0,0.00013808,2]
[401414131,1768193444432,-500.0,0.00013808,2]
[401414132,1768193444441,-285.96,0.00013816,2]
[401414133,1768193444451,-890.08,0.00013833,2]
[401414134,1768193444461,-1680.0,0.00013845,2]
[401414135,1768193444471,-1936.99946493,0.00013846,2]
[401414136,1768193444480,-250.0,0.00013846,2]
[401414137,1768193444490,-250.0,0.00013846,2]
[401414138,1768193444499,-195.0,0.00013846,2]
[401414139,1768193444508,-250.0,0.00013855,2]
[401414140,1768193444519,-300.0,0.00013855,2]
[401414141,1768193444528,-195.0,0.00013855,2]
[401414142,1768193444538,-302.43421383,0.00013855,2]
[401414143,1768193444548,-819.0,0.00013862,2]
[401414144,1768193444557,-500.0,0.00013862,2]
[401414145,1768193444566,-420.0,0.00013875,2]
[401414146,1768193444575,-2500.0,0.00013879,2]
[401414147,1768193444584,-2500.0,0.00013879,2]
[401414148,1768193444593,-2500.0,0.00013879,2]
[401414149,1768193444602,-2500.0,0.00013879,2]
[401414150,1768193444611,-496.45597914,0.00013879,2]
[401414151,1768193444620,-1000.0,0.00013899,2]
[401414152,1768193444630,-1000.0,0.00013899,2]
[401414153,1768193444639,-200.0,0.000139,2]
[401414154,1768193444648,-600.0,0.0001391,2]
[401414155,1768193444657,-600.0,0.0001391,2]
[401414156,1768193444667,-600.0,0.0001391,2]
[401414157,1768193444676,-600.0,0.0001391,2]
[401414158,1768193444686,-300.0,0.00013912,2]
[401414159,1768193444695,-300.0,0.00013912,2]
[401414160,1768193444704,-600.0,0.00013913,2]
[401414161,1768193444713,-819.0,0.00013917,2]
[401414162,1768193444723,-500.0,0.00013917,2]
[401414163,1768193444732,-819.0,0.00013972,2]
[401414164,1768193444742,-500.0,0.00013972,2]
[401414165,1768193444751,-819.0,0.00014027,2]
[401414166,1768193444760,-500.0,0.00014027,2]
[401414167,1768193444769,-1447.9,0.00014058,2]
[401414168,1768193444778,-819.0,0.00014082,2]
[401414169,1768193444787,-500.0,0.00014082,2]
[401414170,1768193444795,-819.0,0.00014136,2]
[401414171,1768193444805,-500.0,0.00014136,2]
[401414172,1768193444814,-819.0,0.00014191,2]
[401414173,1768193444824,-500.0,0.00014191,2]
[401414174,1768193444833,-500.0,0.00014246,2]
[401414175,1768193444842,-819.0,0.00014246,2]
[401414176,1768193444851,-500.0,0.00014301,2]
[401414177,1768193444860,-819.0,0.00014301,2]
[401414178,1768193444870,-1447.9,0.00014332,2]
[401414179,1768193444880,-273.2930836,0.00014356,2]
[401414180,1768193444889,-819.0,0.00014356,2]
[401414181,1768193444899,-13220.76092192,0.00014378,2]
[401414182,1768193444909,-319.66,0.00014393,2]
[401414183,1768193444918,-819.0,0.0001441,2]
[401414184,1768193444930,-355.64124664,0.00014428,2]
[401414185,1768193444939,-819.0,0.00014465,2]
[401414186,1768193444949,-510.98377513,0.00014466,2]
[401414187,1768193444958,-500.0,0.00014466,2]
[401414188,1768193444967,-819.0,0.0001452,2]
[401414189,1768193444976,-819.0,0.00014575,2]
[401414190,1768193444986,-1447.9,0.00014605,2]
[401414191,1768193444996,-819.0,0.00014629,2]
[401414192,1768193445007,-838.50729897,0.00014684,2]
[401414193,1768193445018,-1101.0,0.00014722,2]
[401414194,1768193445028,-998.0,0.00014794,2]
[401414195,1768193445311,-250.0,0.00014794,2]
[401414196,1768193445322,-533.88981491,0.00014794,2]
[401414197,1768193445331,-500.0,0.00014794,2]
[401414198,1768193445341,-250.0,0.00014794,2]
[401414200,1768193445351,-500.0,0.00014794,2]
[401414201,1768193445360,-250.0,0.00014794,2]
[401414202,1768193445371,-500.0,0.00014794,2]
[401414203,1768193445381,-250.0,0.00014794,2]
[401414204,1768193445391,-268.06518829,0.00014794,2]
[401414205,1768193445401,-500.0,0.00014794,2]
[401414206,1768193445412,-250.0,0.00014794,2]
[401414207,1768193445421,-354.6611943,0.00014794,2]
[401414208,1768193445431,-250.0,0.00014794,2]
[401414209,1768193445442,-250.0,0.00014794,2]
[401414210,1768193445452,-250.0,0.00014794,2]
[401414211,1768193445461,-621.07435029,0.00014794,2]
[401414212,1768193445471,-250.0,0.00014794,2]
[401414213,1768193445481,-250.0,0.00014794,2]
[401414214,1768193445490,-250.0,0.00014794,2]
[401414215,1768193445500,-250.0,0.00014794,2]
[401414216,1768193445509,-250.0,0.00014794,2]
[401414217,1768193445518,-250.0,0.00014794,2]
[401414218,1768193445528,-250.0,0.00014794,2]
[401414219,1768193445537,-250.0,0.00014794,2]
[401414220,1768193445546,-250.0,0.00014794,2]
[401414221,1768193445555,-250.0,0.00014794,2]
[401414222,1768193445564,-250.0,0.00014794,2]
[401414223,1768193445574,-202.5130151,0.00014794,2]
[401414224,1768193445583,-587.42192138,0.00014794,2]
[401414225,1768193445593,-250.0,0.00014794,2]
[401414226,1768193445604,-250.0,0.00014794,2]
[401414227,1768193445614,-250.0,0.00014794,2]
[401414228,1768193445623,-274.26884757,0.00014794,2]
[401414229,1768193445633,-250.0,0.00014794,2]
[401414230,1768193445643,-250.0,0.00014794,2]
[401414231,1768193445652,-262.80813108,0.00014794,2]
[401414232,1768193445663,-500.0,0.00014794,2]
[401414233,1768193445672,-596.45794467,0.00014794,2]
[401414234,1768193445682,-1000.0,0.00014794,2]
[401414235,1768193445693,-1000.0,0.00014794,2]
[401414236,1768193445703,-1000.0,0.00014794,2]
[401414237,1768193445714,-1000.0,0.00014794,2]
[401414238,1768193445724,-1000.0,0.00014794,2]
[401414239,1768193445735,-1000.0,0.00014794,2]
[401414240,1768193445745,-311.1,0.00014794,2]
[401414242,1768193445756,-250.0,0.00014794,2]
[401414243,1768193445765,-1000.0,0.00014794,2]
[401414244,1768193445776,-266.15702234,0.00014794,2]
[401414245,1768193445786,-1000.0,0.00014794,2]
[401414246,1768193445796,-1000.0,0.00014794,2]
[401414247,1768193445807,-1000.0,0.00014794,2]
[401414248,1768193445818,-1000.0,0.00014794,2]
[401414249,1768193445827,-1000.0,0.00014794,2]
[401414250,1768193445837,-1125.63397898,0.00014794,2]
[401414251,1768193445846,-151.25256783,0.00014794,2]
[401414252,1768193445858,-322.6107,0.00014794,2]
[401414253,1768193445867,-620.0,0.00014794,2]
[401414254,1768193445879,-683.82185525,0.00014794,2]
[401414255,1768193445888,-250.0,0.00014794,2]
[401414256,1768193445899,-250.0,0.00014794,2]
[401414257,1768193445910,-270.2171612,0.00014794,2]
[401414258,1768193445919,-1447.9,0.00014879,2]
[401414259,1768193445928,-500.0,0.00014913,2]
[401414260,1768193445938,-172.8,0.00014925,2]
[401414261,1768193445948,-151.0,0.00014937,2]
[401414262,1768193445957,-166.67,0.00014944,2]
[401414263,1768193445966,-13220.76092192,0.00014965,2]
[401414264,1768193445976,-151.0,0.00014969,2]
[401414265,1768193445985,-151.0,0.00014969,2]
[401414266,1768193445993,-151.0,0.00014969,2]
[401414267,1768193446002,-151.0,0.00014969,2]
[401414268,1768193446011,-155.25,0.00014969,2]
[401414269,1768193446020,-433.0,0.00014996,2]
[401414270,1768193446029,-180.0,0.00015104,2]
[401414271,1768193446038,-664.65,0.00015105,2]
[401414272,1768193446047,-319.66,0.00015113,2]
[401414273,1768193446057,-1447.9,0.00015153,2]
[401414274,1768193446066,-587.0,0.00015221,2]
[401414275,1768193446076,-2351.0,0.0001523,2]
[401414276,1768193446085,-522.479568,0.00015319,2]
[401414277,1768193446096,-553.64373807,0.00015342,2]
[401414278,1768193446105,-322.6107,0.00015342,2]
[401414279,1768193446114,-1447.9,0.00015427,2]
[401414280,1768193446124,-1101.0,0.00015496,2]
[401414281,1768193446134,-13220.76092192,0.00015552,2]
[401414282,1768193446144,-15007.192135,0.0001559,2]
[401414283,1768193446153,-500.0,0.0001561,2]
[401414284,1768193446162,-3731.00451843,0.0001564,2]
[401414285,1768193446173,-1447.94109109,0.00015701,2]
[401414286,1768193446182,-319.66,0.00015833,2]
[401414287,1768193446191,-574.12855637,0.0001589,2]
[401414288,1768193446200,-307.00510982,0.0001589,2]
[401414289,1768193446210,-801.49309701,0.000159,2]
[401414290,1768193446219,-801.49309701,0.000159,2]
[401414291,1768193446229,-972.79917298,0.00015949,2]
[401414293,1768193446238,-20621.03,0.00015952,2]
[401414294,1768193446248,-166.67,0.00016084,2]
[401414295,1768193446259,-9999.99,0.00016116,2]
[401414296,1768193446268,-1047.04298225,0.00016129,2]
[401414297,1768193446277,-13220.76092192,0.00016139,2]
[401414298,1768193446287,-504.89,0.00016141,2]
[401414299,1768193446297,-334.5472959,0.00016163,2]
[401414300,1768193446306,-642.94,0.00016163,2]
[401414301,1768193446316,-150.0,0.000162,2]
[401414302,1768193446326,-150.0,0.000162,2]
[401414303,1768193446335,-150.0,0.000162,2]
[401414304,1768193446345,-150.0,0.000162,2]
[401414305,1768193446355,-150.0,0.000162,2]
[401414306,1768193446365,-150.64069561,0.000162,2]
[401414307,1768193446375,-150.0,0.000162,2]
[401414308,1768193446385,-150.0,0.000162,2]
[401414309,1768193446395,-150.0,0.000162,2]
[401414310,1768193446404,-150.48103859,0.000162,2]
[401414311,1768193446413,-150.5110912,0.000162,2]
[401414312,1768193446422,-150.0,0.000162,2]
[401414313,1768193446432,-350.68764993,0.000162,2]
[401414314,1768193446442,-150.0,0.000162,2]
[401414315,1768193446453,-150.0,0.000162,2]
[401414316,1768193446463,-350.68764993,0.00016218,2]
[401414317,1768193446472,-350.68764993,0.00016236,2]
[401414318,1768193446481,-350.68764993,0.00016255,2]
[401414319,1768193446491,-350.68764993,0.00016273,2]
[401414320,1768193446502,-736.0,0.0001629,2]
[401414321,1768193446511,-350.68764993,0.00016291,2]
[401414322,1768193446521,-350.68764993,0.00016309,2]
[401414323,1768193446532,-1101.0,0.00016312,2]
[401414324,1768193446542,-350.68764993,0.00016327,2]
[401414325,1768193446551,-150.0,0.00016329,2]
[401414326,1768193446560,-150.0,0.00016329,2]
[401414327,1768193446569,-355.64124664,0.00016338,2]
[401414328,1768193446579,-150.0,0.00016338,2]
[401414329,1768193446588,-350.68764993,0.00016345,2]
[401414330,1768193446597,-150.0,0.0001635,2]
[401414331,1768193446607,-179.28,0.00016356,2]
[401414332,1768193446617,-467.15,0.00016356,2]
[401414333,1768193446630,-179.28,0.00016356,2]
[401414334,1768193446639,-1113.38,0.00016356,2]
[401414335,1768193446649,-179.28,0.00016356,2]
[401414336,1768193446660,-467.15,0.00016356,2]
[401414337,1768193446669,-350.68764993,0.00016364,2]
[401414338,1768193446679,-1467.83,0.00016372,2]
[401414339,1768193446688,-150.0,0.0001638,2]
[401414340,1768193446698,-350.68764993,0.00016382,2]
[401414341,1768193446707,-350.68764993,0.000164,2]
[401414342,1768193446717,-538.21,0.00016417,2]
[401414343,1768193446727,-350.68764993,0.00016418,2]
[401414344,1768193446740,-150.0,0.00016425,2]
[401414345,1768193446750,-150.0,0.00016425,2]
[401414346,1768193446760,-350.68764993,0.00016436,2]
[401414347,1768193446769,-1046.89,0.00016438,2]
[401414348,1768193446778,-1046.89,0.00016438,2]
[401414349,1768193446787,-1046.89,0.00016438,2]
[401414350,1768193446797,-1046.89,0.00016438,2]
[401414351,1768193446806,-1046.89,0.00016438,2]
[401414352,1768193446815,-1046.89,0.00016438,2]
[401414353,1768193446825,-595.37131296,0.00016438,2]
[401414354,1768193446834,-800.75292195,0.00016438,2]
[401414355,1768193446844,-893.0,0.00016438,2]
[401414356,1768193446854,-151.0,0.00016438,2]
[401414357,1768193446863,-661.95,0.00016441,2]
[401414358,1768193446872,-500.0,0.00016445,2]
[401414359,1768193446881,-350.68764993,0.00016455,2]
[401414360,1768193446891,-150.0,0.00016457,2]
[401414361,1768193446900,-150.0,0.00016457,2]
[401414362,1768193446909,-350.68764993,0.00016473,2]
[401414363,1768193446918,-664.65,0.00016475,2]
[401414364,1768193446928,-150.0,0.00016477,2]
[401414365,1768193446937,-350.68764993,0.00016491,2]
[401414366,1768193446946,-150.0,0.000165,2]
[401414367,1768193446957,-150.0,0.000165,2]
[401414368,1768193446966,-350.68764993,0.00016509,2]
[401414369,1768193446976,-350.68764993,0.00016527,2]
[401414370,1768193446985,-350.68764993,0.00016545,2]
[401414371,1768193446994,-319.66,0.00016552,2]
[401414372,1768193447003,-150.0,0.0001656,2]
[401414373,1768193447013,-350.68764993,0.00016564,2]
[401414374,1768193447022,-556.81,0.00016578,2]
[401414375,1768193447031,-467.15,0.00016578,2]
[401414376,1768193447040,-337.8,0.00016578,2]
[401414377,1768193447050,-179.28,0.00016578,2]
[401414378,1768193447059,-350.68764993,0.00016582,2]
[401414379,1768193447069,-150.0,0.00016586,2]
[401414380,1768193447078,-150.0,0.00016586,2]
[401414381,1768193447088,-350.68764993,0.000166,2]
[401414382,1768193447100,-150.0,0.00016615,2]
[401414383,1768193447110,-350.68764993,0.00016618,2]
[401414384,1768193447120,-250.0,0.00016632,2]
[401414385,1768193447129,-350.68764993,0.00016636,2]
[401414386,1768193447139,-661.95,0.00016641,2]
[401414387,1768193447148,-150.0,0.0001665,2]
[401414388,1768193447158,-150.0,0.0001665,2]
[401414389,1768193447170,-150.0,0.0001665,2]
[401414390,1768193447179,-150.0,0.0001665,2]
[401414391,1768193447192,-350.68764993,0.00016655,2]
[401414392,1768193447203,-350.68764993,0.00016673,2]
[401414393,1768193447213,-350.68764993,0.00016691,2]
[401414394,1768193447223,-823.0,0.00016698,2]
[401414395,1768193447233,-350.68764993,0.00016709,2]
[401414396,1768193447242,-159.73,0.00016712,2]
[401414397,1768193447252,-500.0,0.00016712,2]
[401414398,1768193447262,-150.0,0.00016714,2]
[401414399,1768193447271,-150.0,0.00016714,2]
[401414400,1768193447281,-162.0,0.0001672,2]
[401414401,1768193447291,-671.54,0.00016724,2]
[401414402,1768193447301,-13220.76092192,0.00016726,2]
[401414403,1768193447311,-350.68764993,0.00016727,2]
[401414404,1768193447321,-150.0,0.0001674,2]
[401414405,1768193447331,-350.68764993,0.00016745,2]
[401414406,1768193447341,-3292.0,0.00016753,2]
[401414407,1768193447351,-150.0,0.00016754,2]
[401414408,1768193447362,-171.49,0.00016763,2]
[401414409,1768193447372,-171.49,0.00016763,2]
[401414410,1768193447382,-171.53,0.00016763,2]
[401414411,1768193447392,-350.68764993,0.00016764,2]
[401414412,1768193447402,-556.81,0.00016778,2]
[401414413,1768193447412,-467.15,0.00016778,2]
[401414414,1768193447422,-171.53,0.00016778,2]
[401414415,1768193447431,-350.68764993,0.00016782,2]
[401414416,1768193447441,-500.0,0.00016799,2]
[401414417,1768193447450,-150.0,0.000168,2]
[401414418,1768193447460,-150.0,0.000168,2]
[401414419,1768193447470,-150.0,0.000168,2]
[401414420,1768193447479,-350.68764993,0.000168,2]
[401414421,1768193447489,-350.68764993,0.00016818,2]
[401414422,1768193447499,-350.68764993,0.00016836,2]
[401414423,1768193447508,-150.0,0.00016843,2]
[401414424,1768193447517,-150.0,0.00016843,2]
[401414425,1768193447527,-350.68764993,0.00016855,2]
[401414426,1768193447536,-350.68764993,0.00016873,2]
[401414427,1768193447545,-150.0,0.00016875,2]
[401414428,1768193447555,-150.0,0.00016875,2]
[401414429,1768193447564,-1073.4,0.00016885,2]
[401414430,1768193447573,-350.68764993,0.00016891,2]
[401414431,1768193447583,-150.0,0.00016892,2]
[401414432,1768193447592,-350.68764993,0.00016909,2]
[401414433,1768193447602,-150.0,0.0001692,2]
[401414434,1768193447611,-350.68764993,0.00016927,2]
[401414435,1768193447620,-350.68764993,0.00016945,2]
[401414436,1768193447630,-150.0,0.0001695,2]
[401414437,1768193447639,-285.96,0.00016952,2]
[401414438,1768193447648,-350.68764993,0.00016964,2]
[401414439,1768193447657,-150.0,0.00016971,2]
[401414440,1768193447667,-150.0,0.00016971,2]
[401414441,1768193447678,-350.68764993,0.00016982,2]
[401414442,1768193447689,-1073.4,0.00016986,2]
[401414443,1768193447700,-617.40005154,0.00016986,2]
[401414444,1768193447787,-350.68764993,0.00017,2]
[401414445,1768193447798,-2475.47712659,0.00017,2]
[401414446,1768193447808,-776.50436,0.00017,2]
[401414447,1768193447817,-250.0,0.00017,2]
[401414448,1768193447826,-350.68764993,0.00017018,2]
[401414449,1768193447836,-150.0,0.00017031,2]
[401414450,1768193447846,-350.68764993,0.00017036,2]
[401414451,1768193447857,-156.31,0.00017041,2]
[401414452,1768193447867,-483.1,0.00017041,2]
[401414453,1768193447877,-483.1,0.00017041,2]
[401414454,1768193447888,-483.1,0.00017041,2]
[401414455,1768193447898,-661.95,0.00017041,2]
[401414456,1768193447908,-661.95,0.00017041,2]
[401414457,1768193447920,-483.1,0.00017041,2]
[401414458,1768193447930,-661.95,0.00017041,2]
[401414459,1768193447939,-482.44,0.00017041,2]
[401414460,1768193447949,-350.68764993,0.00017055,2]
[401414461,1768193447959,-173.30819609,0.00017073,2]
[401414462,1768193447968,-500.64635657,0.00017073,2]
[401414463,1768193447979,-500.0,0.00017073,2]
[401414464,1768193447990,-500.0,0.00017073,2]
[401414465,1768193448000,-540.4577012,0.00017073,2]
[401414466,1768193448010,-500.0,0.00017073,2]